bitfinex/quotes_BTCUSD_20250723
["timestamp","ask_amount","ask_price","bid_price","bid_amount"]
[1753261030777,1e-08,118380.0,118370.0,4.07799982]
[1753261031018,1e-08,118380.0,118370.0,4.06229982]
[1753261033061,1e-08,118380.0,118370.0,4.09389982]
[1753261034780,1e-08,118380.0,118370.0,4.07859982]
[1753261034986,1e-08,118380.0,118370.0,4.06229982]
[1753261035695,1e-08,118380.0,118370.0,1.40101282]
[1753261035896,1e-08,118380.0,118370.0,4.68221082]
[1753261037080,1e-08,118380.0,118370.0,4.34993682]
[1753261037464,1e-08,118380.0,118370.0,4.38163682]
[1753261041164,1e-08,118380.0,118370.0,4.39908584]
[1753261049536,1e-08,118380.0,118370.0,1.45016184]
[1753261049745,1e-08,118380.0,118370.0,6.45016184]
[1753261050392,1e-08,118380.0,118370.0,6.50016184]
[1753261052617,1e-08,118380.0,118370.0,6.52541844]
[1753261053873,1e-08,118380.0,118370.0,6.50016184]
[1753261056969,1e-08,118380.0,118370.0,1.50016184]
[1753261057179,1e-08,118380.0,118370.0,6.50016184]
[1753261057615,1e-08,118380.0,118370.0,6.52528167]
[1753261059987,1e-08,118380.0,118370.0,1.52528167]
[1753261060197,1e-08,118380.0,118370.0,6.52528167]
[1753261061047,1e-08,118380.0,118370.0,6.86319167]
[1753261061261,4e-05,118390.0,118380.0,0.55173772]
[1753261061473,0.00053322,118390.0,118380.0,5.67464042]
[1753261061684,0.00053322,118390.0,118380.0,5.64977442]
[1753261062114,0.00053322,118390.0,118380.0,6.05510642]
[1753261063123,0.00053322,118390.0,118380.0,6.07430342]
[1753261063575,0.00053322,118390.0,118380.0,6.10530342]
[1753261063791,0.00053322,118390.0,118380.0,6.07945742]
[1753261063969,0.00053322,118390.0,118380.0,1.44738542]
[1753261064166,0.00053322,118390.0,118380.0,6.08142842]
[1753261064383,0.00053322,118390.0,118380.0,5.76080742]
[1753261064792,0.0154,118400.0,118390.0,0.2117213]
[1753261064992,0.07065691,118420.0,118410.0,0.5516885]
[1753261065200,0.00563503,118420.0,118410.0,1.5924972]
[1753261065378,0.01799503,118420.0,118410.0,0.9505768]
[1753261065590,0.01799503,118420.0,118410.0,1.5924972]
[1753261065838,0.01799503,118420.0,118410.0,1.5977072]
[1753261066044,0.01602503,118420.0,118410.0,1.5977072]
[1753261066464,0.00052503,118420.0,118410.0,1.5977072]
[1753261067227,0.00052503,118420.0,118410.0,1.6128072]
[1753261067432,0.00052503,118420.0,118410.0,1.6158072]
[1753261068528,0.00052503,118420.0,118410.0,1.8184472]
[1753261068897,0.00052503,118420.0,118410.0,1.8174472]
[1753261069579,1e-08,118420.0,118410.0,2.2070074]
[1753261070014,1e-08,118420.0,118410.0,1.8860472]
[1753261070637,1e-08,118420.0,118410.0,1.2441268]
[1753261070826,1e-08,118420.0,118410.0,1.8860472]
[1753261072000,1e-08,118420.0,118410.0,2.2238572]
[1753261072664,1e-08,118420.0,118410.0,2.2072572]
[1753261073100,1e-08,118420.0,118410.0,2.5437174]
[1753261073516,1e-08,118420.0,118410.0,7.0373062]
[1753261073737,1e-08,118420.0,118410.0,7.3582664]
[1753261074654,1e-08,118420.0,118410.0,6.3953858]
[1753261074869,1e-08,118420.0,118410.0,7.3582664]
[1753261078081,1e-08,118420.0,118410.0,4.7161542]
[1753261078283,1e-08,118420.0,118410.0,4.7661542]
[1753261078539,1e-08,118420.0,118410.0,4.6667842]
[1753261078740,1e-08,118420.0,118410.0,5.1562502]
[1753261078944,1e-08,118420.0,118410.0,3.9643782]
[1753261079179,1e-08,118420.0,118410.0,3.9805782]
[1753261079808,1e-08,118420.0,118410.0,5.3926752]
[1753261080700,1e-08,118420.0,118410.0,7.0242262]
[1753261081388,1e-08,118420.0,118410.0,6.68236645]
[1753261081870,1e-08,118420.0,118410.0,6.3974058]
[1753261082093,1e-08,118420.0,118410.0,6.68236645]
[1753261084746,1e-08,118420.0,118410.0,6.55208645]
[1753261084967,1e-08,118420.0,118410.0,6.68244645]
[1753261088827,1e-08,118420.0,118410.0,1.68244645]
[1753261089009,1e-08,118420.0,118410.0,6.66734645]
[1753261091321,1e-08,118420.0,118410.0,5.72156245]
[1753261091545,1e-08,118420.0,118410.0,1.89080945]
[1753261091546,0.03760001,118420.0,118410.0,1.89080945]
[1753261092001,0.03760001,118420.0,118410.0,1.7782128]
[1753261092237,0.03760001,118420.0,118410.0,2.06317345]
[1753261092909,0.03446001,118420.0,118410.0,1.59605645]
[1753261093110,0.03446001,118420.0,118410.0,4.2166138]
[1753261093355,0.03446001,118420.0,118410.0,4.31084245]
[1753261093570,0.03446001,118420.0,118410.0,4.16936245]
[1753261093782,0.03446001,118420.0,118410.0,4.29988245]
[1753261094057,0.03446001,118420.0,118410.0,4.79091645]
[1753261094284,0.03446001,118420.0,118410.0,5.18721045]
[1753261095102,0.03446001,118420.0,118410.0,5.18425445]
[1753261095275,0.03446001,118420.0,118410.0,5.19560645]
[1753261095503,0.03446001,118420.0,118410.0,4.5514228]
[1753261095836,0.03446001,118420.0,118410.0,4.66871645]
[1753261096702,0.03446001,118420.0,118410.0,4.65771645]
[1753261097097,0.03760001,118420.0,118410.0,4.36049745]
[1753261097274,0.03760001,118420.0,118410.0,4.38430345]
[1753261097495,0.03446001,118420.0,118410.0,4.38430345]
[1753261098260,0.03446001,118420.0,118410.0,4.36049745]
[1753261098682,0.03760001,118420.0,118410.0,4.29115645]
[1753261099388,0.03760001,118420.0,118410.0,4.31845545]
[1753261099999,0.03446001,118420.0,118410.0,4.31845545]
[1753261100311,0.03446001,118420.0,118410.0,4.39043445]
[1753261100873,0.03446001,118420.0,118410.0,4.0816118]
[1753261101067,0.03446001,118420.0,118410.0,4.36657245]
[1753261101914,0.03446001,118420.0,118410.0,4.36861245]
[1753261102268,0.03446001,118420.0,118410.0,4.39215245]
[1753261102708,0.03446001,118420.0,118410.0,4.37948245]
[1753261103274,0.03446001,118420.0,118410.0,4.39637245]
[1753261103490,0.03423701,118420.0,118410.0,4.37083045]
[1753261104201,0.01783701,118420.0,118410.0,4.37083045]
[1753261104413,0.01783701,118420.0,118410.0,4.65076445]
[1753261105244,0.03639701,118420.0,118410.0,3.32132045]
[1753261105683,0.03639701,118420.0,118410.0,3.67612845]
[1753261105897,0.03333701,118420.0,118410.0,3.67612845]
[1753261106322,0.03333701,118420.0,118410.0,3.51883545]
[1753261106534,0.03639701,118420.0,118410.0,1.39772478]
[1753261106749,0.03639701,118420.0,118410.0,1.68268543]
[1753261107377,0.03639701,118420.0,118410.0,1.70013445]
[1753261109665,0.03639701,118420.0,118410.0,1.59609645]
[1753261109890,0.03639701,118420.0,118410.0,2.67241345]
[1753261111255,0.03639701,118420.0,118410.0,2.3874528]
[1753261111472,0.03639701,118420.0,118410.0,2.08763245]
[1753261111705,0.03639701,118420.0,118410.0,1.1806158]
[1753261111913,0.04484095,118420.0,118410.0,1.3112958]
[1753261112349,0.05328511,118420.0,118410.0,1.3112958]
[1753261112564,0.03639701,118420.0,118410.0,1.59625645]
[1753261116199,0.04484088,118420.0,118410.0,1.59625645]
[1753261116794,0.0532849,118420.0,118410.0,1.57880743]
[1753261117042,0.23061952,118420.0,118410.0,1.49433013]
[1753261117707,0.04484088,118420.0,118410.0,1.49433013]
[1753261119544,0.0532849,118420.0,118410.0,1.49433013]
[1753261119754,0.05328482,118420.0,118410.0,1.49433013]
[1753261120638,0.04484088,118420.0,118410.0,1.49433013]
[1753261121275,0.03639701,118420.0,118410.0,1.49433013]
[1753261121501,0.04484088,118420.0,118410.0,1.49433013]
[1753261122170,0.03639701,118420.0,118410.0,1.49433013]
[1753261122381,0.04484088,118420.0,118410.0,1.49433013]
[1753261122595,0.03639701,118420.0,118410.0,1.49433013]
[1753261122820,0.04484088,118420.0,118410.0,1.49433013]
[1753261123031,0.03639701,118420.0,118410.0,1.49433013]
[1753261123358,0.04484088,118420.0,118410.0,1.20936948]
[1753261123542,0.04484088,118420.0,118410.0,1.49433013]
[1753261123750,0.03639701,118420.0,118410.0,1.20936948]
[1753261123996,0.04484088,118420.0,118410.0,1.49433013]
[1753261124458,0.03639701,118420.0,118410.0,1.49433013]
[1753261125688,0.03639701,118420.0,118410.0,1.20936948]
[1753261125969,0.03639701,118420.0,118410.0,1.49433013]
[1753261131261,0.03639701,118420.0,118410.0,1.53013714]
[1753261132422,0.03333701,118420.0,118410.0,1.3112958]
[1753261132650,0.00216,118420.0,118410.0,1.3165558]
[1753261132877,0.00216,118420.0,118410.0,1.95809112]
[1753261133329,0.00216,118420.0,118410.0,1.3165558]
[1753261133527,0.00216,118420.0,118410.0,1.95809112]
[1753261134475,0.03174,118430.0,118420.0,0.53422308]
[1753261134691,0.0338,118430.0,118420.0,0.98543074]
[1753261134918,0.0173,118430.0,118420.0,0.66962308]
[1753261135137,4e-05,118430.0,118420.0,0.99039074]
[1753261135361,4e-05,118430.0,118420.0,0.66962308]
[1753261135579,4e-05,118430.0,118420.0,0.99139074]
[1753261136050,4e-05,118430.0,118420.0,1.09331706]
[1753261137412,4e-05,118430.0,118420.0,1.05760465]
[1753261137876,4e-05,118430.0,118420.0,0.7725494]
[1753261138073,4e-05,118430.0,118420.0,1.05760465]
[1753261139788,4e-05,118430.0,118420.0,1.07346465]
[1753261143293,4e-05,118430.0,118420.0,0.94306465]
[1753261143515,4e-05,118430.0,118420.0,0.7725094]
[1753261143754,4e-05,118430.0,118420.0,1.05756465]
[1753261144037,4e-05,118430.0,118420.0,0.92716465]
[1753261144250,4e-05,118430.0,118420.0,1.05752465]
[1753261145434,4e-05,118430.0,118420.0,0.92716465]
[1753261145650,4e-05,118430.0,118420.0,1.05756465]
[1753261145861,4e-05,118430.0,118420.0,0.92716465]
[1753261146075,4e-05,118430.0,118420.0,1.05768465]
[1753261146885,0.0339,118430.0,118420.0,0.92716465]
[1753261147144,0.05389667,118430.0,118420.0,1.05276465]
[1753261147339,0.0707837,118430.0,118420.0,0.66582308]
[1753261147537,0.06234004,118430.0,118420.0,0.66582308]
[1753261147888,0.07078356,118430.0,118420.0,0.66582308]
[1753261149651,0.07922758,118430.0,118420.0,0.66582308]
[1753261151649,0.06234033,118430.0,118420.0,0.66582308]
[1753261152985,0.05389681,118430.0,118420.0,0.66582308]
[1753261153752,0.0623404,118430.0,118420.0,0.66582308]
[1753261153910,0.05389653,118430.0,118420.0,0.66582308]
[1753261155621,0.05389646,118430.0,118420.0,0.66582308]
[1753261156407,0.04545316,118430.0,118420.0,0.66582308]
[1753261156814,0.05389646,118430.0,118420.0,0.66582308]
[1753261158597,0.04545316,118430.0,118420.0,0.66582308]
[1753261158834,0.05389646,118430.0,118420.0,0.66582308]
[1753261159034,0.04545316,118430.0,118420.0,0.66582308]
[1753261159243,0.03701,118430.0,118420.0,0.9865721]
[1753261160254,0.04545323,118430.0,118420.0,0.9865721]
[1753261160606,0.0181,118430.0,118420.0,0.9885621]
[1753261161422,0.0181,118430.0,118420.0,0.9915321]
[1753261163740,0.0021,118430.0,118420.0,0.9915321]
[1753261163953,4e-05,118430.0,118420.0,0.9915321]
[1753261164153,4e-05,118430.0,118420.0,0.67078308]
[1753261164359,4e-05,118430.0,118420.0,0.9915321]
[1753261165654,0.00848316,118430.0,118420.0,0.9915321]
[1753261165857,0.01794,118430.0,118420.0,0.9915321]
[1753261166456,0.00204,118430.0,118420.0,0.9915321]
[1753261166671,4e-05,118430.0,118420.0,0.9915321]
[1753261175997,0.01574,118430.0,118420.0,0.9915321]
[1753261176203,0.01574,118430.0,118420.0,0.54018308]
[1753261176204,0.01774,118430.0,118420.0,0.54018308]
[1753261176424,0.0415833,118430.0,118420.0,0.66554308]
[1753261176651,0.04158323,118430.0,118420.0,0.9862521]
[1753261177079,0.04482323,118430.0,118420.0,0.9862521]
[1753261178433,0.05326667,118430.0,118420.0,0.9862521]
[1753261178633,0.05326667,118430.0,118420.0,0.9863721]
[1753261178836,0.05326653,118430.0,118420.0,0.9863721]
[1753261179147,0.06170997,118430.0,118420.0,0.66562308]
[1753261179345,0.06170997,118430.0,118420.0,0.9863721]
[1753261179861,0.0617099,118430.0,118420.0,0.9863721]
[1753261180613,0.05326653,118430.0,118420.0,0.9863721]
[1753261180819,0.02618323,118430.0,118420.0,0.9863721]
[1753261181023,0.0346266,118430.0,118420.0,0.9863721]
[1753261181232,0.03462667,118430.0,118420.0,0.66562308]
[1753261181446,0.0346266,118430.0,118420.0,0.66562308]
[1753261181632,0.04307012,118430.0,118420.0,0.9863721]
[1753261181907,0.05807012,118430.0,118420.0,0.9863721]
[1753261182108,0.0496266,118430.0,118420.0,1.1889721]
[1753261182557,0.05807004,118430.0,118420.0,1.1889721]
[1753261184169,0.23538982,118430.0,118420.0,1.1889321]
[1753261184402,0.23862982,118430.0,118420.0,1.1889321]
[1753261184542,0.0697537,118430.0,118420.0,1.1889321]
[1753261185197,0.0665137,118430.0,118420.0,1.1889321]
[1753261185634,0.05807004,118430.0,118420.0,1.1889321]
[1753261187191,0.0496266,118430.0,118420.0,1.1889321]
[1753261187394,0.05807012,118430.0,118420.0,1.1909221]
[1753261187595,0.0496266,118430.0,118420.0,1.1909221]
[1753261188604,0.05807012,118430.0,118420.0,1.1909221]
[1753261188825,0.03274,118430.0,118420.0,1.1909221]
[1753261189030,0.01048316,118430.0,118420.0,1.1939021]
[1753261189232,0.00848316,118430.0,118420.0,1.1939021]
[1753261190060,4e-05,118430.0,118420.0,1.1939021]
[1753261190430,4e-05,118430.0,118420.0,1.2093021]
[1753261193329,4e-05,118430.0,118420.0,0.88855308]
[1753261193526,4e-05,118430.0,118420.0,1.2093021]
[1753261196324,4e-05,118430.0,118420.0,0.88855308]
[1753261196529,4e-05,118430.0,118420.0,1.2093021]
[1753261197852,4e-05,118430.0,118420.0,0.88855308]
[1753261198061,4e-05,118430.0,118420.0,1.2093021]
[1753261200305,4e-05,118430.0,118420.0,1.2092221]
[1753261201052,4e-05,118430.0,118420.0,1.2936994]
[1753261201304,4e-05,118430.0,118420.0,1.3092994]
[1753261203113,0.01692667,118430.0,118420.0,0.84267038]
[1753261203335,0.06015019,118430.0,118420.0,1.05857224]
[1753261203522,0.06332019,118430.0,118420.0,1.19733626]
[1753261203719,0.07176378,118430.0,118420.0,1.19733626]
[1753261203959,0.08020744,118430.0,118420.0,1.19737626]
[1753261204165,0.06332019,118430.0,118420.0,1.19737626]
[1753261204353,0.0548766,118430.0,118420.0,1.19737626]
[1753261205257,0.04643323,118430.0,118420.0,1.19737626]
[1753261205438,0.0517066,118430.0,118420.0,1.19737626]
[1753261206417,0.06015004,118430.0,118420.0,1.19737626]
[1753261206630,0.0517066,118430.0,118420.0,1.19737626]
[1753261206848,0.0517066,118430.0,118420.0,1.19938626]
[1753261207515,0.02706323,118430.0,118420.0,1.19942626]
[1753261207694,0.02706323,118430.0,118420.0,1.20255626]
[1753261208231,0.0355066,118430.0,118420.0,1.20255626]
[1753261208566,0.02706323,118430.0,118420.0,1.20255626]
[1753261208776,0.0355066,118430.0,118420.0,1.20255626]
[1753261209354,0.0355066,118430.0,118420.0,0.88180724]
[1753261209582,0.0355066,118430.0,118420.0,1.20255626]
[1753261209785,0.02706323,118430.0,118420.0,1.20255626]
[1753261209995,0.0355066,118430.0,118420.0,1.20255626]
[1753261210356,0.02706323,118430.0,118420.0,1.20255626]
[1753261210582,0.0355066,118430.0,118420.0,1.20255626]
[1753261213268,0.0355066,118430.0,118420.0,0.88180724]
[1753261213475,0.22961341,118430.0,118420.0,0.74827724]
[1753261213685,0.07960729,118430.0,118420.0,0.87662724]
[1753261213889,0.07960722,118430.0,118420.0,0.87662724]
[1753261214299,0.06272004,118430.0,118420.0,0.87662724]
[1753261214525,0.04385004,118430.0,118420.0,0.87863724]
[1753261214733,0.04385004,118430.0,118420.0,1.19938626]
[1753261214939,0.21272616,118430.0,118420.0,0.87863724]
[1753261215161,0.60849932,118430.0,118420.0,0.84289039]
[1753261215375,0.60849932,118430.0,118420.0,0.8513349]
[1753261215602,0.60849932,118430.0,118420.0,0.68244451]
[1753261216041,0.6000558,118430.0,118420.0,0.68244451]
[1753261216256,0.6000558,118430.0,118420.0,0.8513349]
[1753261216680,0.22395365,118430.0,118420.0,0.86822357]
[1753261217764,0.22395365,118430.0,118420.0,0.87666773]
[1753261218100,0.22395365,118430.0,118420.0,0.86822371]
[1753261218311,0.22395365,118430.0,118420.0,0.88511224]
[1753261218705,0.22395365,118430.0,118420.0,0.88511189]
[1753261219125,0.04663352,118430.0,118420.0,0.88511189]
[1753261219327,0.24084047,118430.0,118420.0,0.88511154]
[1753261219529,0.23239717,118430.0,118420.0,0.87666745]
[1753261219738,0.30463801,118430.0,118420.0,0.87666745]
[1753261221434,0.05507725,118430.0,118420.0,0.88511147]
[1753261221881,0.0466333,118430.0,118420.0,1.20586049]
[1753261222094,0.0434633,118430.0,118420.0,1.21100049]
[1753261222302,0.03502,118430.0,118420.0,1.20586049]
[1753261223392,0.04346316,118430.0,118420.0,0.88511147]
[1753261223600,0.04346316,118430.0,118420.0,1.20586049]
[1753261223793,0.03502,118430.0,118420.0,1.20586049]
[1753261224662,0.03502,118430.0,118420.0,0.88511147]
[1753261224885,0.03502,118430.0,118420.0,1.20586049]
[1753261225114,0.01852,118430.0,118420.0,0.89001147]
[1753261225323,0.01852,118430.0,118420.0,1.21076049]
[1753261225787,0.01852,118430.0,118420.0,0.89001147]
[1753261226000,0.00202,118430.0,118420.0,1.21076049]
[1753261226337,4e-05,118430.0,118420.0,1.21076049]
[1753261226787,4e-05,118430.0,118420.0,0.89001147]
[1753261227026,4e-05,118430.0,118420.0,1.21076049]
[1753261228537,4e-05,118430.0,118420.0,0.89001147]
[1753261228731,4e-05,118430.0,118420.0,1.21076049]
[1753261230513,0.0084833,118430.0,118420.0,0.75961147]
[1753261230695,0.02704323,118430.0,118420.0,1.21320049]
[1753261231049,0.02704323,118430.0,118420.0,0.89245147]
[1753261231691,0.0518866,118430.0,118420.0,0.89245147]
[1753261232122,0.02704323,118430.0,118420.0,0.89245147]
[1753261232375,0.0354866,118430.0,118420.0,0.89245147]
[1753261232726,0.0354866,118430.0,118420.0,0.88940147]
[1753261232924,0.02704323,118430.0,118420.0,1.21015049]
[1753261233341,0.02704323,118430.0,118420.0,0.88940147]
[1753261233542,0.02704323,118430.0,118420.0,0.89233147]
[1753261233816,0.0354866,118430.0,118420.0,0.89233147]
[1753261234406,0.04393004,118430.0,118420.0,1.21308049]
[1753261234618,0.0354866,118430.0,118420.0,1.21308049]
[1753261235148,0.02704323,118430.0,118420.0,1.21308049]
[1753261235364,0.0354866,118430.0,118420.0,1.21308049]
[1753261235594,0.02704323,118430.0,118420.0,1.21308049]
[1753261236010,0.00848323,118430.0,118420.0,1.21308049]
[1753261237656,0.01898653,118430.0,118420.0,1.21308049]
[1753261237860,0.02742997,118430.0,118420.0,1.21308049]
[1753261238044,0.0274299,118430.0,118420.0,1.21308049]
[1753261238532,0.0274299,118430.0,118420.0,0.89233147]
[1753261238942,0.09286323,118430.0,118420.0,0.89233147]
[1753261239347,0.03587342,118430.0,118420.0,0.89233147]
[1753261239521,0.03583125,118430.0,118420.0,0.89233147]
[1753261239725,0.05173125,118430.0,118420.0,0.89233147]
[1753261239929,0.06017491,118430.0,118420.0,0.89233147]
[1753261243868,0.05173125,118430.0,118420.0,0.89233147]
[1753261244056,0.03583125,118430.0,118420.0,1.21308049]
[1753261245022,0.03377125,118430.0,118420.0,1.21308049]
[1753261245339,0.04221484,118430.0,118420.0,1.21308049]
[1753261246082,0.02533019,118430.0,118420.0,0.89233147]
[1753261246214,0.04927385,118430.0,118420.0,1.21308049]
[1753261246418,0.04083019,118430.0,118420.0,1.21308049]
[1753261246615,0.04927385,118430.0,118420.0,1.21308049]
[1753261247285,0.02533019,118430.0,118420.0,0.89233147]
[1753261247511,0.02533019,118430.0,118420.0,1.21308049]
[1753261248277,0.02533011,118430.0,118420.0,1.21308049]
[1753261249081,0.02533011,118430.0,118420.0,0.89233147]
[1753261249296,0.02533011,118430.0,118420.0,1.21308049]
[1753261250553,0.01688667,118430.0,118420.0,1.21308049]
[1753261251200,0.01688667,118430.0,118420.0,0.89233147]
[1753261251408,0.0337737,118430.0,118420.0,1.21308049]
[1753261251611,0.02533011,118430.0,118420.0,1.21308049]
[1753261251785,0.01688667,118430.0,118420.0,1.21308049]
[1753261252012,0.02533011,118430.0,118420.0,1.21308049]
[1753261253474,0.0337737,118430.0,118420.0,1.21308049]
[1753261253933,0.04426736,118430.0,118420.0,0.89233147]
[1753261254379,0.01893667,118430.0,118420.0,1.21308049]
[1753261254628,0.02533011,118430.0,118420.0,0.89233147]
[1753261254870,0.02533011,118430.0,118420.0,1.21308049]
[1753261255084,0.0337737,118430.0,118420.0,1.21308049]
[1753261255277,0.02533011,118430.0,118420.0,1.21308049]
[1753261256318,0.0337737,118430.0,118420.0,0.89233147]
[1753261256553,0.02533011,118430.0,118420.0,1.21308049]
[1753261257250,0.02533011,118430.0,118420.0,0.89233147]
[1753261257493,0.02533011,118430.0,118420.0,1.21308049]
[1753261258169,0.0337737,118430.0,118420.0,1.21308049]
[1753261258388,0.01688667,118430.0,118420.0,1.21308049]
[1753261259017,0.02533011,118430.0,118420.0,1.21308049]
[1753261259218,0.01688667,118430.0,118420.0,1.21308049]
[1753261259398,0.01688667,118430.0,118420.0,0.89233147]
[1753261259608,0.0084433,118430.0,118420.0,0.89233147]
[1753261260167,0.0084433,118430.0,118420.0,1.21308049]
[1753261260390,0.0084433,118430.0,118420.0,1.22838049]
[1753261260608,0.01688639,118430.0,118420.0,1.21149153]
[1753261260892,0.01728553,118440.0,118430.0,0.19420652]
[1753261261100,0.01728553,118440.0,118430.0,0.66529554]
[1753261261101,0.02572848,118440.0,118430.0,0.66529554]
[1753261261309,0.02572848,118440.0,118430.0,0.34752652]
[1753261261856,0.1861474,118440.0,118430.0,0.34752652]
[1753261262069,0.02572855,118440.0,118430.0,0.34752652]
[1753261262282,0.02672855,118440.0,118430.0,0.34752652]
[1753261262816,0.19559042,118440.0,118430.0,0.34752652]
[1753261263033,0.20403351,118440.0,118430.0,0.34752652]
[1753261263660,0.19559085,118440.0,118430.0,0.32334322]
[1753261263868,0.58704053,118440.0,118430.0,0.32334337]
[1753261264288,0.26629151,118440.0,118430.0,0.32334337]
[1753261264480,0.58704053,118440.0,118430.0,0.32334337]
[1753261264950,0.58704053,118440.0,118430.0,0.33178689]
[1753261265167,0.57859766,118440.0,118430.0,0.31481978]
[1753261265350,0.57859766,118440.0,118430.0,0.3232633]
[1753261265565,0.526447,118440.0,118430.0,0.3232633]
[1753261266062,0.526447,118440.0,118430.0,0.5258633]
[1753261266786,0.825747,118440.0,118430.0,0.5258633]
[1753261266991,0.825747,118440.0,118430.0,0.51741978]
[1753261267414,0.89337593,118440.0,118430.0,0.52586337]
[1753261267826,0.88493291,118440.0,118430.0,0.52586337]
[1753261268239,0.49655496,118440.0,118430.0,0.53430689]
[1753261268492,0.81525398,118440.0,118430.0,0.54275033]
[1753261268939,0.81525398,118440.0,118430.0,0.5511937]
[1753261269181,0.49450496,118440.0,118430.0,0.5511937]
[1753261269407,0.82369685,118440.0,118430.0,0.5511937]
[1753261270070,0.82369685,118440.0,118430.0,0.55119334]
[1753261270709,0.80719685,118440.0,118430.0,0.54275004]
[1753261270915,0.80719685,118440.0,118430.0,0.55905004]
[1753261271411,0.80719685,118440.0,118430.0,0.55060667]
[1753261271628,0.48644783,118440.0,118430.0,0.55060667]
[1753261272057,0.80718404,118440.0,118430.0,0.55060667]
[1753261272996,0.48644783,118440.0,118430.0,0.55060667]
[1753261273237,0.3007,118440.0,118430.0,0.88822955]
[1753261273492,0.3007,118440.0,118430.0,0.90422955]
[1753261275085,0.0014,118440.0,118430.0,0.90422955]
[1753261277734,0.0014,118440.0,118430.0,0.58349334]
[1753261278493,0.0014,118440.0,118430.0,0.90422955]
[1753261278693,0.0014,118440.0,118430.0,1.00615587]
[1753261282175,0.0014,118440.0,118430.0,0.68541966]
[1753261282376,0.0014,118440.0,118430.0,1.00615587]
[1753261283359,0.0014,118440.0,118430.0,0.68541966]
[1753261283838,0.0014,118440.0,118430.0,1.00615587]
[1753261284569,0.0014,118440.0,118430.0,1.34615587]
[1753261284999,0.0014,118440.0,118430.0,1.78513987]
[1753261288309,0.0014,118440.0,118430.0,1.66689208]
[1753261288515,0.0014,118440.0,118430.0,6.66689208]
[1753261289098,0.0014,118440.0,118430.0,6.02541966]
[1753261289326,0.0014,118440.0,118430.0,6.66689208]
[1753261289532,0.0004,118440.0,118430.0,6.66689208]
[1753261289965,0.0004,118440.0,118430.0,6.66789208]
[1753261290617,0.0004,118440.0,118430.0,6.66989208]
[1753261291738,0.0004,118440.0,118430.0,6.02841966]
[1753261291940,0.0004,118440.0,118430.0,6.66989208]
[1753261293218,0.0004,118440.0,118430.0,6.66889208]
[1753261294113,0.00044,118460.0,118430.0,6.66889208]
[1753261294114,0.00044,118460.0,118450.0,0.19417388]
[1753261294330,0.00058786,118460.0,118450.0,3.34479939]
[1753261294545,0.00058786,118460.0,118450.0,2.01406339]
[1753261294757,0.00058786,118460.0,118450.0,0.78110239]
[1753261294965,0.00012286,118460.0,118450.0,0.93881662]
[1753261295485,0.00012286,118460.0,118450.0,0.80701662]
[1753261295725,0.00012286,118460.0,118450.0,0.93877662]
[1753261296144,0.00112286,118460.0,118450.0,0.93877662]
[1753261296558,0.00112286,118460.0,118450.0,0.61804041]
[1753261296728,0.00112286,118460.0,118450.0,0.93877662]
[1753261297845,0.00112286,118460.0,118450.0,0.79394162]
[1753261298048,0.00112286,118460.0,118450.0,1.79826362]
[1753261298608,0.00112286,118460.0,118450.0,1.47752741]
[1753261298811,0.00112286,118460.0,118450.0,1.79826362]
[1753261299652,0.00112286,118460.0,118450.0,1.47752741]
[1753261299855,0.00112286,118460.0,118450.0,1.79826362]
[1753261301455,0.00112286,118460.0,118450.0,1.47752741]
[1753261301665,0.00112286,118460.0,118450.0,1.79826362]
[1753261307551,0.00112286,118460.0,118450.0,1.75614939]
[1753261307763,0.00112286,118460.0,118450.0,1.74494939]
[1753261309081,0.00112286,118460.0,118450.0,1.78576177]
[1753261309235,0.00112286,118460.0,118450.0,1.46502556]
[1753261309639,0.00112286,118460.0,118450.0,1.78576177]
[1753261312688,0.00112286,118460.0,118450.0,1.71576177]
[1753261312897,0.00112286,118460.0,118450.0,1.74108804]
[1753261314482,0.00112286,118460.0,118450.0,1.42035183]
[1753261314666,0.00112286,118460.0,118450.0,1.74108804]
[1753261316363,0.00112286,118460.0,118450.0,1.42035183]
[1753261316741,0.00112286,118460.0,118450.0,1.74108804]
[1753261317184,0.00112286,118460.0,118450.0,1.72548804]
[1753261318389,0.00112286,118460.0,118450.0,1.40475183]
[1753261318594,0.00112286,118460.0,118450.0,1.72548804]
[1753261319987,0.00329286,118460.0,118450.0,1.07320606]
[1753261320186,0.00329286,118460.0,118450.0,1.18858606]
[1753261320605,0.00112286,118460.0,118450.0,1.18858606]
[1753261320815,0.01869286,118460.0,118450.0,0.65665747]
[1753261321014,0.01869286,118460.0,118450.0,1.10823368]
[1753261321219,0.00112286,118460.0,118450.0,1.11136368]
[1753261321829,0.00112286,118460.0,118450.0,0.70818268]
[1753261322014,0.00112286,118460.0,118450.0,1.17297368]
[1753261323599,0.00112286,118460.0,118450.0,1.19863672]
[1753261324781,0.00112286,118460.0,118450.0,1.21393672]
[1753261325739,0.00112286,118460.0,118450.0,1.41645672]
[1753261328021,0.00329286,118460.0,118450.0,1.24152368]
[1753261328229,0.00329286,118460.0,118450.0,1.06612868]
[1753261328670,0.01959286,118460.0,118450.0,0.74539247]
[1753261328857,0.01959286,118460.0,118450.0,1.06612868]
[1753261330079,0.01959286,118460.0,118450.0,0.74539247]
[1753261330288,0.01959286,118460.0,118450.0,1.06612868]
[1753261331139,0.02254286,118460.0,118450.0,1.06130868]
[1753261331524,0.02254286,118460.0,118450.0,0.74057247]
[1753261331738,0.02254286,118460.0,118450.0,1.06130868]
[1753261331950,0.02254286,118460.0,118450.0,0.74057247]
[1753261332163,0.02254286,118460.0,118450.0,1.06130868]
[1753261334941,0.01959286,118460.0,118450.0,1.06130868]
[1753261335547,0.01959286,118460.0,118450.0,0.74057247]
[1753261335748,0.01959286,118460.0,118450.0,1.06130868]
[1753261336438,0.01959286,118460.0,118450.0,0.74057247]
[1753261336648,0.00112286,118460.0,118450.0,1.08093868]
[1753261336951,0.00112286,118460.0,118450.0,1.06130868]
[1753261336952,0.02184286,118460.0,118450.0,1.06130868]
[1753261337378,0.01889286,118460.0,118450.0,1.06130868]
[1753261339140,0.01889286,118460.0,118450.0,1.06443868]
[1753261339356,0.01889286,118460.0,118450.0,0.74370247]
[1753261339562,0.01889286,118460.0,118450.0,1.06443868]
[1753261340127,0.01889286,118460.0,118450.0,0.91106268]
[1753261342066,0.01889286,118460.0,118450.0,0.59032647]
[1753261342274,0.01889286,118460.0,118450.0,0.91106268]
[1753261343125,0.01881286,118460.0,118450.0,0.91106268]
[1753261345554,0.01881286,118460.0,118450.0,0.59032647]
[1753261345797,0.01881286,118460.0,118450.0,0.43649745]
[1753261346011,0.03705286,118460.0,118450.0,0.80351636]
[1753261346608,0.04549388,118460.0,118450.0,0.80351636]
[1753261346823,0.04549395,118460.0,118450.0,0.48278015]
[1753261347137,0.03705286,118460.0,118450.0,0.67275636]
[1753261347337,0.04549388,118460.0,118450.0,0.80355636]
[1753261347544,0.03705286,118460.0,118450.0,0.80355636]
[1753261348239,0.03705286,118460.0,118450.0,0.48282015]